fUST/lending_fUST_20240706
["ID","MTS","AMOUNT","RATE_DAILY","PERIOD"]
[331309036,1720209040150,-500.0,0.0004766,120]
[331309037,1720209040161,-468.44507802,0.0004766,31]
[331309038,1720209040171,-500.0,0.0004766,120]
[331309039,1720209040182,-500.0,0.0004766,120]
[331309040,1720209040192,-500.0,0.0004766,120]
[331309041,1720209040203,-440.81026123,0.0004766,120]
[331309042,1720209040213,-500.0,0.0004766,120]
[331309043,1720209040223,-472.60352894,0.0004766,120]
[331309044,1720209040234,-1000.0,0.0004766,120]
[331309045,1720209040244,-1000.0,0.0004766,120]
[331309046,1720209040254,-633.25139038,0.0004766,120]
[331309048,1720209040264,-1000.0,0.0004766,30]
[331309049,1720209040275,-55648.7002234,0.00047661,5]
[331309050,1720209040285,-139121.750559,0.00047661,5]
[331309051,1720209040295,-9777.51,0.00047671,120]
[331309052,1720209040306,-9777.51,0.00047671,120]
[331309053,1720209040318,-9777.51,0.00047671,120]
[331309054,1720209040337,-9777.51,0.00047671,120]
[331309055,1720209040348,-9777.51,0.00047671,120]
[331309056,1720209040359,-2982.0624837,0.00047671,120]
[331309057,1720209040373,-3871.13176789,0.00047671,120]
[331309058,1720209040386,-1827.67971937,0.00047671,120]
[331309061,1720209041114,-365.5290607,0.00033807,2]
[331309062,1720209041125,-1096.63602904,0.00047671,120]
[331309063,1720209041136,-9777.51,0.00047671,120]
[331309064,1720209041146,-9777.51,0.00047671,120]
[331309065,1720209041156,-9777.51,0.00047671,120]
[331309066,1720209041166,-9777.51,0.00047671,120]
[331309067,1720209041176,-9777.51,0.00047671,120]
[331309068,1720209041186,-9777.51,0.00047671,120]
[331309069,1720209041196,-2775.60752173,0.00047671,120]
[331309070,1720209041210,-7001.90247827,0.00047671,120]
[331309071,1720209041220,-9777.51,0.00047671,120]
[331309072,1720209041231,-9777.51,0.00047671,120]
[331309073,1720209041240,-9777.51,0.00047671,120]
[331309074,1720209041250,-9777.51,0.00047671,120]
[331309075,1720209041261,-9777.51,0.00047671,120]
[331309076,1720209041271,-9777.51,0.00047671,120]
[331309077,1720209041281,-9777.51,0.00047671,120]
[331309078,1720209041291,-9777.51,0.00047671,120]
[331309079,1720209041301,-9777.51,0.00047671,120]
[331309080,1720209041311,-9777.51,0.00047671,120]
[331309081,1720209041321,-9777.736873,0.00047671,120]
[331309082,1720209041331,-1000.0,0.00048,48]
[331309083,1720209041341,-169.4,0.00048087,60]
[331309084,1720209041352,-152.0,0.00048087,60]
[331309085,1720209041362,-151.0,0.00048112,60]
[331309086,1720209041372,-1254.2605658,0.00048283,2]
[331309087,1720209041383,-500.0,0.00048315,120]
[331309088,1720209041394,-169.4,0.00048581,60]
[331309089,1720209041406,-152.0,0.00048581,60]
[331309090,1720209041416,-150.0,0.00048893,2]
[331309091,1720209041426,-167.0,0.00048904,90]
[331309092,1720209041436,-1152.21455243,0.0004892,2]
[331309093,1720209041446,-877.0,0.00048987,2]
[331309094,1720209041456,-1000.0,0.00049,49]
[331309095,1720209041466,-169.4,0.00049076,60]
[331309096,1720209041476,-152.0,0.00049076,60]
[331309097,1720209041488,-7078.17297905,0.00049203,4]
[331309098,1720209041498,-1254.2605658,0.00049205,2]
[331309099,1720209041509,-27824.3501117,0.00049212,6]
[331309100,1720209041519,-83664.09614947,0.00049222,61]
[331309101,1720209041529,-20000.0,0.00049222,5]
[331309102,1720209041539,-27824.3501117,0.00049305,6]
[331309103,1720209041550,-40447.54384293,0.00049315,61]
[331309104,1720209041560,-500.0,0.00049315,120]
[331309105,1720209041576,-500.0,0.00049315,120]
[331309106,1720209041586,-500.0,0.00049315,120]
[331309107,1720209041596,-536.85832135,0.00049315,120]
[331309108,1720209041607,-500.0,0.00049315,120]
[331309109,1720209041619,-500.0,0.00049315,120]
[331309110,1720209041630,-500.0,0.00049315,120]
[331309111,1720209041639,-500.0,0.00049315,120]
[331309112,1720209041650,-500.0,0.00049315,120]
[331309113,1720209041660,-500.0,0.00049315,120]
[331309114,1720209041669,-569.79,0.00049315,120]
[331309115,1720209041678,-626.92,0.00049315,120]
[331309116,1720209041690,-500.0,0.00049315,120]
[331309117,1720209041700,-500.0,0.00049315,120]
[331309118,1720209041710,-165.81268334,0.00049315,120]
[331309119,1720209041720,-500.0,0.00049315,120]
[331309120,1720209041729,-500.0,0.00049315,120]
[331309121,1720209041740,-506.23360147,0.00049315,120]
[331309122,1720209041750,-500.0,0.00049315,120]
[331309123,1720209041760,-500.0,0.00049315,120]
[331309124,1720209041769,-500.0,0.00049315,120]
[331309125,1720209041779,-621.59,0.00049315,120]
[331309126,1720209041789,-500.0,0.00049315,120]
[331309127,1720209041800,-500.0,0.00049315,120]
[331309128,1720209041812,-205.2427398,0.00049315,120]
[331309129,1720209041822,-1470.16,0.00049315,120]
[331309130,1720209041832,-214.09258691,0.00049315,120]
[331309131,1720209041841,-500.0,0.00049315,120]
[331309132,1720209041851,-285.19700255,0.00049315,120]
[331309133,1720209041862,-500.0,0.00049315,120]
[331309134,1720209041872,-500.0,0.00049315,120]
[331309135,1720209041882,-500.0,0.00049315,120]
[331309136,1720209041892,-500.0,0.00049315,120]
[331309137,1720209041902,-500.0,0.00049315,120]
[331309138,1720209041912,-500.0,0.00049315,120]
[331309139,1720209041923,-500.0,0.00049315,120]
[331309140,1720209041934,-500.0,0.00049315,120]
[331309141,1720209041944,-500.0,0.00049315,120]
[331309142,1720209041954,-500.0,0.00049315,120]
[331309143,1720209041965,-630.32,0.00049315,120]
[331309144,1720209041978,-500.0,0.00049315,120]
[331309145,1720209041988,-500.0,0.00049315,120]
[331309146,1720209041999,-500.0,0.00049315,120]
[331309147,1720209042009,-500.0,0.00049315,120]
[331309148,1720209042019,-500.0,0.00049315,120]
[331309149,1720209042029,-181.2167162,0.00049315,120]
[331309150,1720209042038,-500.0,0.00049315,120]
[331309151,1720209042048,-193.61138868,0.00049315,120]
[331309152,1720209042058,-500.0,0.00049315,120]
[331309153,1720209042069,-502.20170737,0.00049315,120]
[331309154,1720209042080,-500.0,0.00049315,120]
[331309155,1720209042090,-505.03452232,0.00049315,120]
[331309156,1720209042099,-497.88294838,0.00049315,120]
[331309157,1720209042290,-5.74535764,0.00049315,120]
[331309158,1720209042300,-1178.99,0.00049315,120]
[331309159,1720209042312,-66.73727556,0.00049315,120]
[331309160,1720209042325,-433.26272444,0.00049315,120]
[331309161,1720209042335,-186.45033035,0.00049315,120]
[331309162,1720209042355,-261.546,0.00049315,120]
[331309236,1720209046647,-360.48479037,0.00033807,4]
[331309237,1720209046658,-264.86125261,0.00039393,2]
[331309238,1720209046668,-3870.55,0.0004689,3]
[331309239,1720209046678,-52.00366965,0.00049315,120]
[331309240,1720209046689,-467.65924197,0.00049315,120]
[331309241,1720209046719,-506.222105,0.00049315,120]
[331309242,1720209046729,-500.0,0.00049315,120]
[331309243,1720209046740,-575.76275457,0.00049315,120]
[331309244,1720209046750,-500.0,0.00049315,3]
[331309246,1720209046761,-450.5902221,0.00049315,120]
[331309248,1720209046771,-500.0,0.00049315,120]
[331309250,1720209046781,-500.0,0.00049315,120]
[331309252,1720209046791,-408.51976373,0.00049315,120]
[331309254,1720209046801,-500.0,0.00049315,120]
[331309255,1720209046812,-603.07,0.00049315,120]
[331309256,1720209046825,-500.0,0.00049315,120]
[331309257,1720209046835,-500.0,0.00049315,120]
[331309258,1720209046845,-500.0,0.00049315,120]
[331309259,1720209046855,-500.0,0.00049315,120]
[331309260,1720209046866,-500.0,0.00049315,120]
[331309261,1720209046876,-500.0,0.00049315,120]
[331309262,1720209046887,-500.0,0.00049315,120]
[331309263,1720209046897,-508.32165735,0.00049315,120]
[331309264,1720209046908,-500.0,0.00049315,120]
[331309265,1720209047118,-500.0,0.00049315,120]
[331309266,1720209047140,-500.0,0.00049315,120]
[331309267,1720209047150,-500.0,0.00049315,120]
[331309268,1720209047160,-500.0,0.00049315,120]
[331309269,1720209047170,-500.0,0.00049315,120]
[331309270,1720209047180,-209.60809394,0.00049315,120]
[331309271,1720209047190,-500.0,0.00049315,120]
[331309272,1720209047199,-188.27053171,0.00049315,120]
[331309273,1720209047209,-500.0,0.00049315,120]
[331309274,1720209047219,-532.2,0.00049315,120]
[331309275,1720209047228,-500.0,0.00049315,3]
[331309276,1720209047238,-500.0,0.00049315,120]
[331309277,1720209047247,-500.0,0.00049315,120]
[331309278,1720209047257,-500.0,0.00049315,120]
[331309279,1720209047266,-784.9,0.00049315,120]
[331309280,1720209047275,-601.34,0.00049315,120]
[331309281,1720209047285,-500.0,0.00049315,120]
[331309282,1720209047294,-500.0,0.00049315,120]
[331309283,1720209047304,-552.71,0.00049315,120]
[331309284,1720209047316,-500.0,0.00049315,120]
[331309285,1720209047325,-1487.84,0.00049315,120]
[331309286,1720209047334,-500.0,0.00049315,120]
[331309287,1720209047343,-702.05,0.00049315,120]
[331309288,1720209047353,-500.0,0.00049315,120]
[331309289,1720209047363,-509.23,0.00049315,120]
[331309290,1720209047373,-500.0,0.00049315,120]
[331309291,1720209047384,-501.74471623,0.00049315,120]
[331309292,1720209047393,-500.0,0.00049315,120]
[331309293,1720209047403,-500.53430089,0.00049315,120]
[331309294,1720209047413,-628.35,0.00049315,120]
[331309295,1720209047424,-501.55710411,0.00049315,120]
[331309296,1720209047433,-701.72,0.00049315,120]
[331309297,1720209047443,-501.74566429,0.00049315,120]
[331309298,1720209047453,-536.79233008,0.00049315,120]
[331309299,1720209047463,-587.74,0.00049315,120]
[331309300,1720209047472,-210.98216367,0.00049315,7]
[331309301,1720209047481,-500.0,0.00049315,120]
[331309302,1720209047492,-514.37,0.00049315,120]
[331309303,1720209047502,-600.99250218,0.00049315,120]
[331309304,1720209047512,-501.41845044,0.00049315,120]
[331309305,1720209047522,-1439.23,0.00049315,120]
[331309306,1720209047535,-500.0,0.00049315,120]
[331309307,1720209047544,-500.0,0.00049315,120]
[331309308,1720209047554,-500.0,0.00049315,120]
[331309309,1720209047565,-500.0,0.00049315,120]
[331309310,1720209047579,-500.0,0.00049315,120]
[331309311,1720209047589,-500.0,0.00049315,120]
[331309312,1720209047598,-500.0,0.00049315,120]
[331309313,1720209047607,-730.01,0.00049315,120]
[331309314,1720209047618,-684.66,0.00049315,120]
[331309315,1720209047628,-504.36,0.00049315,120]
[331309316,1720209047637,-500.0,0.00049315,120]
[331309317,1720209047647,-500.0,0.00049315,120]
[331309318,1720209047656,-1657.94,0.00049315,120]
[331309319,1720209047666,-501.05304247,0.00049315,120]
[331309320,1720209047677,-971.26,0.00049315,120]
[331309321,1720209047688,-500.0,0.00049315,120]
[331309322,1720209047698,-500.0,0.00049315,120]
[331309323,1720209047707,-500.0,0.00049315,120]
[331309324,1720209047717,-500.0,0.00049315,120]
[331309325,1720209047727,-500.0,0.00049315,120]
[331309326,1720209047736,-1137.26,0.00049315,120]
[331309327,1720209047745,-500.0,0.00049315,120]
[331309328,1720209047754,-500.0,0.00049315,120]
[331309329,1720209047764,-878.16,0.00049315,120]
[331309330,1720209047774,-661.02,0.00049315,120]
[331309331,1720209047783,-500.0,0.00049315,120]
[331309332,1720209047792,-500.0,0.00049315,120]
[331309333,1720209047802,-500.0,0.00049315,120]
[331309334,1720209047811,-500.0,0.00049315,120]
[331309335,1720209047823,-500.0,0.00049315,120]
[331309336,1720209047832,-697.57437466,0.00049315,120]
[331309337,1720209047866,-599.7,0.00049315,120]
[331309338,1720209047878,-350.96562534,0.00049315,120]
[331309339,1720209047887,-1015.23,0.00049315,120]
[331309340,1720209047896,-501.28127056,0.00049315,120]
[331309341,1720209047905,-527.31,0.00049315,120]
[331309342,1720209047915,-500.0,0.00049315,120]
[331309343,1720209047923,-839.79,0.00049315,120]
[331309344,1720209047932,-501.89000106,0.00049315,120]
[331309345,1720209047942,-500.0,0.00049315,120]
[331309346,1720209047951,-500.0,0.00049315,120]
[331309347,1720209047961,-500.0,0.00049315,120]
[331309348,1720209047970,-701.73,0.00049315,120]
[331309349,1720209047980,-597.75,0.00049315,120]
[331309350,1720209047990,-181.25394416,0.00049315,120]
[331309375,1720210048158,-300.0,0.00019999,2]
[331309376,1720210048180,-29200.98626222,0.0002,2]
[331309377,1720210056700,-49818.38307133,0.0002,2]
[331309380,1720210153832,-767.84468671,0.0002,2]
[331309381,1720210164156,-20212.78597974,0.0002,2]
[331309382,1720210164178,-4172.94461587,0.0002,2]
[331309383,1720210164200,-154.83742071,0.0002,2]
[331309384,1720210164221,-185.39529844,0.0002,2]
[331309385,1720210164241,-225.53942994,0.0002,2]
[331309386,1720210164261,-154.83742071,0.0002,2]
[331309387,1720210164983,-293.097476,0.00021096,2]
[331309388,1720210165009,-163.085764,0.00022747,2]
[331309389,1720210165029,-166.666666,0.00023036,2]
[331309390,1720210165050,-166.666666,0.00023664,2]
[331309391,1720210165071,-166.666666,0.00024292,2]
[331309392,1720210165094,-166.666666,0.0002492,2]
[331309393,1720210165114,-8980.57,0.0002498,3]
[331309394,1720210165133,-14021.67,0.0002498,3]
[331309396,1720210165154,-11684.72,0.0002498,3]
[331309397,1720210165174,-231.25757574,0.00024989,2]
[331309398,1720210165196,-14181.14167269,0.0002499,3]
[331309442,1720210236003,-763.20815407,0.0002,2]
[331309443,1720210236014,-4172.94461587,0.00024242,2]
[331309444,1720210236031,-207.35662459,0.00024242,2]
[331309445,1720210236041,-4172.94461587,0.00024242,2]
[331309459,1720210236326,-15603.46579211,0.0002499,3]
[331309462,1720210236348,-49111.2768643,0.0002499,3]
[331309464,1720210236358,-9737.27,0.0002499,3]
[331309466,1720210236368,-100000.0,0.00025,2]
[331309468,1720210236378,-166.666666,0.00025548,2]
[331309471,1720210236389,-166.666666,0.00026176,2]
[331309473,1720210236400,-30000.0,0.00027184,2]
[331309475,1720210236411,-293.097476,0.00027195,2]
[331309477,1720210236420,-160.989801,0.00027397,120]
[331309479,1720210236430,-161.546614,0.000289,2]
[331309481,1720210236439,-2426.81880528,0.00029693,2]
[331309483,1720210236449,-547.91,0.0003,60]
[331309485,1720210236459,-384.0,0.0003,2]
[331309487,1720210236468,-152.80906433,0.00030781,7]
[331309489,1720210236477,-151.57276841,0.00031778,7]
[331309491,1720210236486,-160.989801,0.00031963,120]
[331309493,1720210236496,-293.097476,0.00033295,2]
[331309495,1720210236505,-2426.81880526,0.00034571,2]
[331309497,1720210236515,-8550.96884589,0.00035292,5]
[331309499,1720210236524,-152.80906433,0.00035561,7]
[331309501,1720210236533,-160.989801,0.0003653,120]
[331309503,1720210236543,-159.2983416,0.00036977,7]
[331309505,1720210236552,-154.83742071,0.00037,4]
[331309507,1720210236562,-1363.30880984,0.00037999,7]
[331309509,1720210236573,-39447.9421645,0.00038254,4]
[331309511,1720210236583,-393.89323921,0.00038499,4]
[331309513,1720210236592,-2865.4309312,0.00039177,4]
[331309515,1720210236601,-360.62808166,0.00039393,7]
[331309517,1720210236610,-1061.23104722,0.00039393,4]
[331309519,1720210236619,-293.097476,0.00039394,2]
[331309521,1720210236628,-2426.81880526,0.00039449,2]
[331309523,1720210236637,-163.085764,0.00039905,2]
[331309525,1720210236646,-1091.40807892,0.00039993,21]
[331309527,1720210236655,-3990.00210664,0.00039999,4]
[331309529,1720210236664,-604.51651072,0.00039999,4]
[331309531,1720210236674,-268.95171548,0.00040278,4]
[331309533,1720210236685,-305.32983827,0.00040278,7]
[331309535,1720210236694,-160.989801,0.00041096,120]
[331309537,1720210236703,-302.69857441,0.00041999,2]
[331309539,1720210236712,-1260.0,0.00042398,4]
[331309541,1720210236721,-1260.0,0.00042398,4]
[331309543,1720210236731,-176.55656884,0.00042629,10]
[331309545,1720210236741,-753.87417621,0.00042629,2]
[331309547,1720210236751,-734.59152125,0.00042629,4]
[331309549,1720210236760,-154.82195475,0.00042958,4]
[331309551,1720210236770,-247.17796158,0.00042958,2]
[331309553,1720210236780,-215.09979109,0.00042958,4]
[331309555,1720210236789,-154.82195475,0.00042958,4]
[331309557,1720210236798,-154.77557542,0.00042958,2]
[331309559,1720210236808,-154.77557542,0.00042958,2]
[331309561,1720210236818,-242.74403794,0.00042958,4]
[331309563,1720210236827,-154.77557542,0.00042958,2]
[331309565,1720210236836,-154.82195475,0.00042958,4]
[331309567,1720210236845,-468.44507802,0.00042998,31]
[331309569,1720210236855,-455.26202462,0.00042998,31]
[331309571,1720210236865,-500.0,0.00042998,31]
[331309573,1720210236874,-500.0,0.00042998,31]
[331309575,1720210236883,-500.0,0.00042998,31]
[331309577,1720210236892,-500.0,0.00042998,31]
[331309579,1720210236901,-238.78049516,0.00042998,31]
[331309581,1720210236911,-500.0,0.00042998,31]
[331309583,1720210236920,-500.0,0.00042998,31]
[331309585,1720210236930,-1911.91864527,0.00042999,30]
[331309587,1720210236939,-154.77557542,0.00042999,4]
[331309589,1720210236948,-190.7238018,0.00042999,4]
[331309591,1720210236957,-154.82195475,0.00042999,4]
[331309593,1720210236968,-221.49191877,0.00042999,4]
[331309595,1720210236977,-1715.07390542,0.00042999,2]
[331309597,1720210236987,-1039.06688618,0.00042999,2]
[331309599,1720210237001,-1913.40843699,0.00042999,4]
[331309601,1720210237010,-4136.19649619,0.00042999,4]
[331309602,1720210237031,-833.0400645,0.00042999,4]
[331309810,1720210239659,-360.48479037,0.00038264,4]
[331309811,1720210239718,-2000.89973827,0.00039177,4]
[331309812,1720210239749,-3252.18893663,0.00041999,4]
[331309813,1720210239765,-801.55222625,0.00042999,4]
[331309814,1720210239775,-1500.0,0.00042999,4]
[331309815,1720210239785,-1696.34095295,0.00042999,4]
[331309816,1720210239795,-1597.25650539,0.00042999,20]
[331309818,1720210239805,-293.17875685,0.00042999,4]
[331309820,1720210239815,-351.27235617,0.00042999,30]
[331309822,1720210239825,-154.77557542,0.00042999,4]
[331309824,1720210239835,-1728.1702109,0.00043286,4]
[331309826,1720210239845,-1457.08355424,0.00043286,4]
[331309827,1720210239856,-2574.67694342,0.00043287,4]
[331309830,1720210239866,-1350.06880364,0.00043287,4]
[331309832,1720210239876,-39447.9421645,0.00043824,5]
[331309834,1720210239886,-2426.81880526,0.00044327,2]
[331309836,1720210239896,-169.4,0.0004524,31]
[331309838,1720210239906,-877.0,0.00045376,2]
[331309840,1720210239916,-293.097476,0.00045494,2]
[331309842,1720210239926,-169.4,0.0004573,31]
[331309844,1720210239936,-232.401,0.00046207,2]
[331309846,1720210239946,-150.0,0.00046207,2]
[331309848,1720210239956,-169.4,0.00046709,60]
[331309850,1720210239966,-978.04,0.00046899,30]
[331309852,1720210239976,-22810.22,0.000469,120]
[331309854,1720210239987,-4500.0,0.00047,120]
[331309856,1720210240000,-167.0,0.00047,90]
[331309858,1720210240010,-3000.0,0.00047,2]
[331309860,1720210240020,-153.0,0.00047123,120]
[331309861,1720210240030,-169.4,0.00047198,60]
[331309863,1720210240041,-39447.9421645,0.0004766,5]
[331309865,1720210240053,-1000.0,0.00047661,30]
[331309868,1720210240064,-78895.8843291,0.00047661,5]
[331309870,1720210240076,-61477.33611572,0.00047671,61]
[331309872,1720210240086,-12794.03,0.00047671,120]
[331309874,1720210240097,-12794.03,0.00047671,120]
[331309876,1720210240107,-12794.03,0.00047671,120]
[331309878,1720210240118,-12794.03,0.00047671,120]
[331309879,1720210240127,-12794.03,0.00047671,120]
[331309881,1720210240137,-12794.03,0.00047671,120]
[331309884,1720210240148,-12794.03,0.00047671,120]
[331309886,1720210240159,-12794.03,0.00047671,120]
[331309888,1720210240169,-12794.03,0.00047671,120]
[331309890,1720210240179,-12794.03,0.00047671,120]
[331309892,1720210240190,-12794.03,0.00047671,120]
[331309893,1720210240199,-2956.16844973,0.00047671,120]
[331309920,1720210240924,-154.77557542,0.00042958,4]
[331309921,1720210240934,-9837.86155027,0.00047671,120]
[331309922,1720210240944,-12794.03,0.00047671,120]
[331309923,1720210240953,-12794.03,0.00047671,120]
[331309924,1720210240963,-12794.03,0.00047671,120]
[331309925,1720210240973,-12794.03,0.00047671,120]
[331309926,1720210240982,-12794.03,0.00047671,120]
[331309927,1720210240991,-12794.03,0.00047671,120]
[331309928,1720210241003,-12794.03,0.00047671,120]
[331309929,1720210241012,-12794.03,0.00047671,120]
[331309930,1720210241022,-12794.03,0.00047671,120]
[331309931,1720210241031,-12794.03,0.00047671,120]
[331309932,1720210241042,-12794.03,0.00047671,120]
[331309933,1720210241051,-12794.16419715,0.00047671,120]
[331309934,1720210241062,-152.0,0.00047687,60]
[331309935,1720210241073,-169.4,0.00048177,60]
[331309936,1720210241084,-152.0,0.00048177,60]
[331309937,1720210241094,-877.0,0.00048376,2]
[331309938,1720210241103,-152.0,0.00048666,60]
[331309939,1720210241113,-168.0,0.00048904,90]
[331309940,1720210241123,-1152.21455243,0.0004892,2]
[331309941,1720210241132,-4325.58204606,0.00049,120]
[331309942,1720210241142,-500.0,0.00049,30]
[331309943,1720210241151,-150.78889555,0.00049021,2]
[331309944,1720210241162,-169.4,0.00049156,60]
[331309945,1720210241172,-152.0,0.00049156,60]
[331309946,1720210241181,-1000.0,0.00049193,120]
[331309947,1720210241190,-1000.0,0.00049193,120]
[331309948,1720210241200,-1000.0,0.00049193,120]
[331309949,1720210241210,-1000.0,0.00049193,120]
[331309950,1720210241220,-1000.0,0.00049193,120]
[331309951,1720210241230,-662.58559738,0.00049193,120]
[331309952,1720210241240,-36937.31180907,0.00049194,5]
[331309953,1720210241250,-2000.0,0.00049194,120]
[331309954,1720210241259,-1000.0,0.000492,30]
[331309955,1720210241269,-500.0,0.000492,30]
[331309956,1720210241278,-2426.81880526,0.00049205,2]
[331309958,1720210241287,-1000.0,0.00049314,120]
[331309959,1720210241296,-83664.09614947,0.00049315,61]
[331309960,1720210241306,-324.82950934,0.00049315,3]
[331309961,1720210241314,-290.27376141,0.00049315,4]
[331309962,1720210241323,-500.0,0.00049315,120]
[331309963,1720210241333,-500.0,0.00049315,120]
[331309964,1720210241343,-500.0,0.00049315,120]
[331309965,1720210241353,-500.0,0.00049315,120]
[331309966,1720210241363,-500.0,0.00049315,120]
[331309967,1720210241372,-273.27086151,0.00049315,120]
[331309968,1720210241381,-500.0,0.00049315,120]
[331309969,1720210241390,-500.0,0.00049315,120]
[331309970,1720210241400,-500.0,0.00049315,120]
[331309971,1720210241409,-572.84,0.00049315,120]
[331309972,1720210241420,-214.09258691,0.00049315,120]
[331309973,1720210241430,-500.0,0.00049315,120]
[331309974,1720210241440,-500.0,0.00049315,120]
[331309975,1720210241449,-500.0,0.00049315,120]
[331309976,1720210241459,-500.0,0.00049315,120]
[331309977,1720210241474,-500.0,0.00049315,120]
[331309978,1720210241484,-500.0,0.00049315,120]
[331309979,1720210241493,-500.0,0.00049315,120]
[331309980,1720210241505,-181.2167162,0.00049315,120]
[331309981,1720210241514,-505.34,0.00049315,120]
[331309983,1720210241524,-500.0,0.00049315,120]
[331309985,1720210241537,-522.01,0.00049315,120]
[331309986,1720210241546,-500.0,0.00049315,120]
[331309987,1720210241555,-500.0,0.00049315,120]
[331309988,1720210241564,-500.0,0.00049315,120]
[331309989,1720210241573,-500.0,0.00049315,120]
[331309990,1720210241583,-373.30624438,0.00049315,120]
[331309991,1720210241603,-500.7675816,0.00049315,120]
[331309992,1720210241615,-500.0,0.00049315,120]
[331309993,1720210241625,-214.41884185,0.00049315,120]
[331309994,1720210241636,-500.0,0.00049315,120]
[331309995,1720210241645,-500.0,0.00049315,120]
[331309996,1720210241655,-500.0,0.00049315,120]
[331309997,1720210241664,-500.0,0.00049315,120]
[331309998,1720210241674,-500.0,0.00049315,120]
[331309999,1720210241683,-500.0,0.00049315,120]
[331310000,1720210241693,-500.0,0.00049315,120]
[331310001,1720210241702,-500.0,0.00049315,120]
[331310002,1720210241712,-500.0,0.00049315,3]
[331310003,1720210241721,-1055.88,0.00049315,120]
[331310005,1720210241731,-500.0,0.00049315,120]
[331310007,1720210241740,-507.40428864,0.00049315,120]
[331310008,1720210241750,-500.0,0.00049315,120]
[331310010,1720210241759,-500.0,0.00049315,120]
[331310012,1720210241769,-500.0,0.00049315,120]
[331310014,1720210241778,-500.0,0.00049315,120]
[331310015,1720210241787,-500.0,0.00049315,120]
[331310016,1720210241796,-500.0,0.00049315,120]
[331310017,1720210241805,-500.0,0.00049315,120]
[331310018,1720210241814,-500.0,0.00049315,120]
[331310020,1720210241824,-904.4,0.00049315,120]
[331310022,1720210241833,-500.0,0.00049315,120]
[331310023,1720210241843,-233.01692564,0.00049315,120]
[331310024,1720210241853,-500.0,0.00049315,120]
[331310025,1720210241862,-563.84,0.00049315,120]
[331310026,1720210241872,-500.0,0.00049315,120]
[331310027,1720210241882,-500.0,0.00049315,120]
[331310028,1720210241891,-500.0,0.00049315,120]
[331310029,1720210241900,-500.0,0.00049315,120]
[331310030,1720210241910,-500.0,0.00049315,120]
[331310031,1720210241919,-500.0,0.00049315,30]
[331310032,1720210241929,-500.0,0.00049315,120]
[331310033,1720210241938,-204.82506616,0.00049315,120]
[331310034,1720210241947,-500.0,0.00049315,120]
[331310035,1720210241957,-1000.0,0.00049315,120]
[331310036,1720210241969,-1585.67,0.00049315,60]
[331310037,1720210241979,-529.68,0.00049315,120]
[331310038,1720210241989,-500.0,0.00049315,120]
[331310039,1720210242003,-500.0,0.00049315,120]
[331310040,1720210242012,-500.0,0.00049315,120]
[331310041,1720210242022,-500.0,0.00049315,120]
[331310042,1720210242037,-481.89767634,0.00049315,120]
[331310043,1720210242057,-500.0,0.00049315,120]
[331310044,1720210242070,-1425.84,0.00049315,120]
[331310045,1720210242080,-500.0,0.00049315,120]
[331310046,1720210242091,-500.0,0.00049315,120]
[331310047,1720210242100,-672.8,0.00049315,120]
[331310048,1720210242111,-500.0,0.00049315,120]
[331310049,1720210242123,-500.0,0.00049315,120]
[331310050,1720210242132,-501.80841656,0.00049315,120]
[331310051,1720210242143,-881.39,0.00049315,120]
[331310052,1720210242152,-500.0,0.00049315,120]